[Event "VII Totalizator Sportowy 2022"]
[Site "Bydgoszcz"]
[Date "2022.06.27"]
[Round "3.20"]
[White "Kulon, Klaudia"]
[Black "Syrkiewicz, Michal"]
[Result "1/2-1/2"]
[ECO "A36"]
[WhiteElo "2305"]
[BlackElo "2000"]
[Annotator "TA"]
[PlyCount "84"]
[EventDate "2022.06.25"]
[EventType "swiss"]
[EventCountry "POL"]
[SourceTitle "playchess.com"]
[Source "ChessBase"]
[SourceQuality "1"]
[TimeControl "40/5400+30:1800+30"]

{[%evp 10,84,0,0,20,4,12,4,6,-9,-11,-20,27,20,36,33,35,30,36,30,27,0,0,-54,-45,-70,-62,-90,-79,-112,-114,-226,-236,-204,-201,-193,-176,-177,-176,-165,-90,-85,-63,-48,-37,-71,-31,-44,-39,-72,-82,-106,-89,-195,-200,-189,-189,-189,-189,-196,-196,-191,-196,-196,-202,-196,14,-99,-125,-127,0,0,0,-123,0,-78,-52]} 1. c4 {[%emt 0:07:52]} c5 {[%emt 0:00:18]} 2. g3 {[%emt 0:00:09]} Nc6 {[%emt 0:00:46]} 3. Bg2 {[%emt 0:00:05]} g6 {[%emt 0:00:08]} 4. Nc3 {[%emt 0:00:06]} Bg7 {[%emt 0:00:26]} 5. a3 {[%emt 0:00:04]} d6 {[%emt 0:02:49]} 6. Rb1 {[%emt 0:03:29]} Be6 {[%emt 0:02:30] A36: Symmetrical English vs ...g6: 4 Bg2 Bg7.} 7. Nd5 {[%emt 0:00:31]} Nf6 {[%emt 0:03:15]} 8. d3 {[%emt 0:00:33] [#]} O-O $146 {[%emt 0:02:17] The position is equal.} ({Predecessor:} 8... Qd7 9. b4 cxb4 10. axb4 Bxd5 11. cxd5 Nd4 12. Bb2 Nb5 13. e4 O-O 14. Ne2 Nh5 {½-½ (28) Mehlhorn,U (2165)-Teichgraeber,M Germany 2001}) 9. b4 {[%emt 0:03:58]} cxb4 {[%emt 0:04:19]} 10. axb4 {[%emt 0:00:01]} Bxd5 {[%emt 0:02:19]} (10... a5 $1 {deserves consideration.}) 11. cxd5 $11 {[%emt 0:00:07]} Nd4 {[%emt 0:00:47]} 12. e3 {[%emt 0:00:38]} Nb5 {[%emt 0:00:12]} 13. Ne2 {[%emt 0:00:15] Against Nc3} Rc8 {[%emt 0:06:17]} 14. O-O {[%emt 0:01:18]} Qc7 {[%emt 0:03:52]} 15. e4 {[%emt 0:10:33]} Qc2 {[%emt 0:07:26]} 16. Be3 {[%emt 0:01:25]} (16. Bf4 $11) 16... Ng4 $36 {[%emt 0:07:08][%mdl 2048] Black has some pressure.} 17. Bg5 {[%emt 0:01:07]} Qxd1 {[%emt 0:21:43]} (17... h6 {is more complex.} 18. Bf4 Qxd1 19. Rfxd1 Rc2) 18. Rbxd1 {[%emt 0:02:17]} h6 {[%emt 0:02:40]} 19. Bd2 {[%emt 0:09:10]} Rc2 {[%emt 0:01:44]} 20. Bh3 {[%emt 0:00:28]} (20. d4 $17 {was called for.}) 20... Ne5 $19 {[%emt 0:00:21]} 21. Kg2 {[%emt 0:03:49] Against Nf3} Nxd3 {[%emt 0:02:15]} 22. Bd7 {[%emt 0:01:59]} a6 {[%emt 0:01:58] White must now prevent ...Nb2.} 23. Be3 {[%emt 0:04:19]} Nxb4 {[%emt 0:03:53]} (23... Rxe2 24. Rxd3 Rb2 25. Bd2 $17) 24. Rb1 {[%emt 0:05:56]} Rxe2 {[%emt 0:03:57]} (24... Na2 $19 25. Rfe1 Rxe2 $1 26. Rxe2 Nbc3 27. Rxa2 Nxb1) 25. Rxb4 $17 {[%emt 0:05:07]} Nc3 {[%emt 0:00:45] Strongly threatening ...b5.} 26. Rxb7 {[%emt 0:00:12]} (26. Bg4 $2 Rxe3 27. fxe3 b5 $19) 26... Nxe4 {[%emt 0:00:38]} 27. Bg4 {[%emt 0:01:18][%csl LRe2,LRe7] This bishop pair is nice.} Rb2 {[%emt 0:04:01]} 28. Rxe7 {[%emt 0:00:13]} Nc3 {[%emt 0:00:24]} 29. Bf3 {[%emt 0:01:08]} a5 {[%emt 0:01:27][%cal Ba6a5,Ba5a4,Ba4a3,Ba3a2][%mdl 32]} 30. Ra7 {[%emt 0:00:15]} a4 $1 {[%emt 0:00:13]} 31. h4 {[%emt 0:03:31]} (31. Bf4 $17) 31... Rbb8 $19 {[%emt 0:04:40] Threatens to win with ...Ra8.} 32. Bf4 {[%emt 0:05:05]} Ra8 {[%emt 0:00:44]} 33. Rxa8 {[%emt 0:00:49]} Rxa8 {[%emt 0:00:03]} 34. Bxd6 {[%emt 0:00:09]} a3 {[%emt 0:02:20]} 35. Be7 {[%emt 0:01:46]} a2 {[%emt 0:00:55]} 36. d6 {[%emt 0:00:06] [#]} Ra7 {[%emt 0:00:26]} ({But not} 36... Nb1 37. Bxa8 a1=Q 38. d7 Qxa8+ 39. Kh3 $18 (39. Kg1 Nd2 $11)) 37. Ra1 {[%emt 0:00:05]} Bf8 $2 {[%emt 0:01:59]} (37... Be5 $19 {aiming for ...h5.} 38. Bc6 Nb1 39. Rxa2 Rxa2) 38. Bxf8 {[%emt 0:01:00]} (38. Bf6 $11 Nb5 39. d7 Rxd7 40. Rxa2) 38... Kxf8 $17 {[%emt 0:00:17]} 39. Bc6 {[%emt 0:00:06] Inhibits Ra4. And now d7 would win.} Nb1 {[%emt 0:01:22]} 40. Bd5 {[%emt 0:00:00]} Nc3 {[%emt 0:00:00]} 41. Bc6 {[%emt 0:03:58] [#] Hoping for d7.} Nb1 {[%emt 0:00:20]} ({Black should try} 41... f5 $1 $17 {...Ra6 is the strong threat.} 42. d7 (42. Kf3 $2 Ra6 $19) 42... Ke7 43. Re1+ Ne4) 42. Bb5 {[%emt 0:02:24] Against Ra6} (42. Bd5 $11 {keeps the balance.}) 42... Ra8 {[%emt 0:04:27] Weighted Error Value: White=0.21 (precise) /Black=0.25 (precise)} 1/2-1/2

[Event "VII Totalizator Sportowy 2022"]
[Site "Bydgoszcz"]
[Date "2022.06.27"]
[Round "3.21"]
[White "Malczyk, Radoslaw"]
[Black "Sernecki, Franciszek"]
[Result "0-1"]
[ECO "C02"]
[WhiteElo "2067"]
[BlackElo "2272"]
[Annotator "TA"]
[PlyCount "74"]
[EventDate "2022.06.25"]
[EventType "swiss"]
[EventCountry "POL"]
[SourceTitle "playchess.com"]
[Source "ChessBase"]
[SourceQuality "1"]
[TimeControl "40/5400+30:1800+30"]

{[%evp 10,74,4,0,0,-41,-45,-37,-37,-54,-56,-52,-23,-25,0,9,15,-16,-21,-35,-23,-31,0,-30,-38,-43,-38,-28,-43,-77,-29,-56,-77,-268,-268,-437,-431,-565,-562,-558,-552,-624,-647,-867,-850,-850,-839,-838,-756,-921,-895,-894,-892,-884,-875,-861,-856,-779,-542,-834,-497,-484,-493,-674,-674,-1102,-1046]} 1. e4 {[%emt 0:00:08]} e6 {[%emt 0:00:38]} 2. d4 {[%emt 0:00:06]} d5 {[%emt 0:00:03]} 3. e5 {[%emt 0:00:06]} c5 {[%emt 0:00:05]} 4. c3 {[%emt 0:00:06]} Nc6 {[%emt 0:00:04]} 5. Nf3 {[%emt 0:00:06]} Bd7 {[%emt 0:00:15]} 6. Bd3 {[%emt 0:00:14]} cxd4 {[%emt 0:06:51]} 7. O-O {[%emt 0:06:01]} dxc3 {[%emt 0:04:39]} 8. Nxc3 {[%emt 0:00:09]} Nge7 {[%emt 0:00:29] Black is slightly better.} 9. Re1 {[%emt 0:00:12]} Ng6 {[%emt 0:03:08]} 10. g3 {[%emt 0:08:52]} Be7 {[%emt 0:03:30]} 11. h4 {[%emt 0:00:23]} O-O {[%emt 0:01:19]} 12. h5 {[%emt 0:00:07]} Nh8 {[%emt 0:00:13]} ({Resist} 12... Qb6 13. hxg6 fxg6 14. Rb1 $16) 13. Qc2 {[%emt 0:02:03][%csl Gc2][%cal Rd3h7][%mdl 1024] [#] White has compensation.} g6 {[%emt 0:00:47]} 14. a3 {[%emt 0:01:09] Prevents Nb4.} Rc8 {[%emt 0:06:29]} 15. Bh6 {[%emt 0:01:53]} Re8 {[%emt 0:06:35] And now ...d4 would win.} 16. Qe2 {[%emt 0:04:41]} f5 {[%emt 0:13:54] Hoping for ...Nf7.} 17. exf6 {[%emt 0:05:27]} Bxf6 {[%emt 0:00:17]} 18. hxg6 {[%emt 0:00:18]} hxg6 {[%emt 0:05:35]} 19. Kg2 {[%emt 0:01:23]} Ne7 {[%emt 0:11:22]} (19... Nf7 $17 20. Qd2 g5) 20. g4 {[%emt 0:04:18]} Nf7 {[%emt 0:03:03] Prevents Ne5.} 21. Bd2 {[%emt 0:00:40] This costs White the game.} (21. Bf4 $17) 21... e5 $19 {[%emt 0:02:24]} 22. g5 {[%emt 0:00:20]} (22. Nh2) 22... Bg7 {[%emt 0:01:04] Black is clearly winning.} 23. Nxd5 {[%emt 0:04:27]} Nxd5 {[%emt 0:02:59]} 24. Bxg6 {[%emt 0:00:12]} Bc6 {[%emt 0:02:27]} 25. Bxf7+ {[%emt 0:01:22]} Kxf7 {[%emt 0:00:23]} 26. g6+ {[%emt 0:00:12]} Kg8 {[%emt 0:01:44] ...e4 is the strong threat.} 27. Qc4 {[%emt 0:01:26]} Re6 {[%emt 0:02:06]} 28. Qg4 {[%emt 0:01:03]} Qf6 {[%emt 0:01:58]} 29. Kg3 {[%emt 0:00:30]} Rf8 {[%emt 0:02:23]} 30. Bg5 {[%emt 0:01:20]} Qf5 {[%emt 0:00:53]} 31. Qxf5 Rxf5 {[%emt 0:00:03]} 32. Kg4 {[%emt 0:01:48]} Rf8 {[%emt 0:00:36]} 33. Nh4 {[%emt 0:00:54]} Nf4 {[%emt 0:01:34]} 34. Nf5 {[%emt 0:00:51] [#]} Bf3+ $1 {[%emt 0:01:38][%mdl 512]} 35. Kxf3 {[%emt 0:00:06] aiming for Ne7+.} Rxf5 {[%emt 0:00:03]} 36. Kg4 {[%emt 0:00:31]} Rf8 {[%emt 0:00:10]} 37. Rad1 {[%emt 0:00:41]} Rxg6 {[%emt 0:00:22] Weighted Error Value: White=0.56/Black=0.12 (very precise)} 0-1

[Event "VII Totalizator Sportowy 2022"]
[Site "Bydgoszcz"]
[Date "2022.06.27"]
[Round "3.22"]
[White "Ratajczak, Hubert"]
[Black "Sliwicki, Damian"]
[Result "1-0"]
[ECO "A22"]
[WhiteElo "1899"]
[BlackElo "2168"]
[Annotator "RC"]
[PlyCount "74"]
[EventDate "2022.06.25"]
[EventType "swiss"]
[EventCountry "POL"]
[SourceTitle "playchess.com"]
[Source "ChessBase"]
[SourceQuality "1"]
[TimeControl "40/5400+30:1800+30"]

1. c4 {[%emt 0:00:02]} e5 {[%emt 0:03:10]} 2. Nc3 {[%emt 0:00:15]} Nf6 {[%emt 0:00:06]} 3. g3 {[%emt 0:00:25]} Bb4 {[%emt 0:00:04]} 4. e4 {[%emt 0:00:31]} d6 {[%emt 0:00:12]} 5. Bg2 {[%emt 0:01:01]} Nc6 {[%emt 0:00:30]} 6. Nge2 {[%emt 0:01:45]} Bg4 {[%emt 0:01:18]} 7. h3 {[%emt 0:01:36]} Be6 {[%emt 0:01:55]} 8. d3 {[%emt 0:00:49]} Qd7 {[%emt 0:00:26]} 9. a3 {[%emt 0:09:11]} Bc5 {[%emt 0:00:06]} 10. f4 {[%emt 0:02:58]} g6 {[%emt 0:00:59]} 11. g4 {[%emt 0:01:48]} Qd8 {[%emt 0:06:09]} 12. f5 {[%emt 0:01:36]} Bd7 {[%emt 0:00:27]} 13. Bh6 {[%emt 0:09:08]} Nxe4 {[%emt 0:01:41]} 14. Nxe4 {[%emt 0:00:12]} Qh4+ {[%emt 0:00:11]} 15. N2g3 {[%emt 0:01:39]} Qxh6 {[%emt 0:00:19]} 16. g5 {[%emt 0:01:21]} Qh4 {[%emt 0:00:18]} 17. Nf6+ {[%emt 0:01:44]} Kd8 {[%emt 0:00:36]} 18. Qg4 {[%emt 0:00:20]} Qxg4 {[%emt 0:01:10]} 19. hxg4 {[%emt 0:00:38]} Be3 {[%emt 0:02:19]} 20. Nxd7 {[%emt 0:12:15]} Kxd7 {[%emt 0:00:52]} 21. Bxc6+ {[%emt 0:00:24]} bxc6 {[%emt 0:01:06]} 22. Ne4 {[%emt 0:00:51]} d5 {[%emt 0:01:28]} 23. Ke2 {[%emt 0:00:35]} Bf4 {[%emt 0:02:28]} 24. Nf6+ {[%emt 0:00:37]} Kd6 {[%emt 0:00:29]} 25. Nxh7 {[%emt 0:01:11]} Rag8 {[%emt 0:07:48]} 26. b4 {[%emt 0:08:08]} Rg7 {[%emt 0:17:28]} 27. c5+ {[%emt 0:00:58]} Ke7 {[%emt 0:05:40]} 28. f6+ {[%emt 0:00:01]} Ke6 {[%emt 0:00:05]} 29. fxg7 {[%emt 0:00:05]} Rg8 {[%emt 0:00:04]} 30. Nf6 {[%emt 0:00:45]} Rxg7 {[%emt 0:00:09]} 31. Rh8 {[%emt 0:00:03]} Bxg5 {[%emt 0:00:34]} 32. Ne8 {[%emt 0:00:07]} Bf6 {[%emt 0:00:13]} 33. Nxg7+ {[%emt 0:00:02]} Bxg7 {[%emt 0:00:07]} 34. Re8+ {[%emt 0:01:04]} Kd7 {[%emt 0:00:18]} 35. Rg8 {[%emt 0:00:47]} Bf6 {[%emt 0:00:05]} 36. Rf1 {[%emt 0:00:16]} Ke7 {[%emt 0:00:02]} 37. Rc8 {[%emt 0:00:11]} Kd7 1-0

[Event "VII Totalizator Sportowy 2022"]
[Site "Bydgoszcz"]
[Date "2022.06.27"]
[Round "3.23"]
[White "Prieb, Robert"]
[Black "Stolarczyk, Adam"]
[Result "1-0"]
[ECO "E97"]
[WhiteElo "2034"]
[BlackElo "2125"]
[Annotator "NA RC"]
[PlyCount "59"]
[EventDate "2022.06.25"]
[EventType "swiss"]
[EventCountry "POL"]
[SourceTitle "playchess.com"]
[Source "ChessBase"]
[SourceQuality "1"]
[TimeControl "40/5400+30:1800+30"]

1. d4 {[%emt 0:00:07]} Nf6 {[%emt 0:00:08]} 2. Nf3 {[%emt 0:00:19]} d6 {[%emt 0:00:34]} 3. c4 {[%emt 0:00:19]} g6 {[%emt 0:00:18]} 4. Nc3 {[%emt 0:00:31]} Bg7 {[%emt 0:00:11]} 5. e4 {[%emt 0:00:29]} O-O {[%emt 0:00:11]} 6. Be2 {[%emt 0:00:26]} e5 {[%emt 0:00:31]} 7. O-O {[%emt 0:00:31]} Nc6 {[%emt 0:00:23]} 8. d5 {[%emt 0:00:32]} Ne7 {[%emt 0:00:10]} 9. Kh1 {[%emt 0:00:38]} Ne8 {[%emt 0:00:52]} 10. Ng1 {[%emt 0:00:37]} f5 {[%emt 0:00:42]} 11. f4 {[%emt 0:00:36]} Nf6 {[%emt 0:07:10]} 12. fxe5 {[%emt 0:02:25]} dxe5 {[%emt 0:00:09]} 13. Nf3 {[%emt 0:00:52]} Nxe4 {[%emt 0:02:34]} 14. Nxe4 {[%emt 0:00:19]} fxe4 {[%emt 0:00:04]} 15. Ng5 {[%emt 0:00:17]} Bf5 {[%emt 0:00:52]} 16. g4 {[%emt 0:03:20]} h6 {[%emt 0:05:13]} 17. gxf5 {[%emt 0:07:42]} hxg5 {[%emt 0:00:26]} 18. Bxg5 {[%emt 0:02:03]} Rxf5 {[%emt 0:04:15]} 19. Rxf5 {[%emt 0:02:23]} gxf5 {[%emt 0:01:36]} 20. c5 {[%emt 0:00:55]} Qe8 {[%emt 0:04:32]} 21. d6 {[%emt 0:01:44]} cxd6 {[%emt 0:00:32]} 22. cxd6 {[%emt 0:00:20]} Nc6 {[%emt 0:01:23]} 23. Bc4+ {[%emt 0:04:16]} Kh7 {[%emt 0:01:31]} 24. Qf1 {[%emt 0:02:11]} Nd4 {[%emt 0:06:45]} 25. Qh3+ {[%emt 0:11:40]} Kg6 {[%emt 0:00:38]} 26. Be7 {[%emt 0:00:56]} Nf3 {[%emt 0:02:34]} 27. Be6 {[%emt 0:01:02]} Qc6 {[%emt 0:05:32]} 28. Rg1+ {[%emt 0:00:57]} Nxg1 {[%emt 0:00:32]} 29. Qxf5+ {[%emt 0:00:11]} Kh6 {[%emt 0:00:06]} 30. Bg5+ {[%emt 0:00:08]} 1-0

[Event "VII Totalizator Sportowy 2022"]
[Site "Bydgoszcz"]
[Date "2022.06.27"]
[Round "3.24"]
[White "Hulka, Valentyn"]
[Black "Zaninotto, Franco"]
[Result "1/2-1/2"]
[ECO "B31"]
[WhiteElo "2123"]
[BlackElo "2069"]
[Annotator "NA RC"]
[PlyCount "77"]
[EventDate "2022.06.25"]
[EventType "swiss"]
[EventCountry "POL"]
[SourceTitle "playchess.com"]
[Source "ChessBase"]
[SourceQuality "1"]
[TimeControl "40/5400+30:1800+30"]

1. e4 {[%emt 0:00:03]} c5 {[%emt 0:00:07]} 2. Nf3 {[%emt 0:00:05]} Nc6 {[%emt 0:00:04]} 3. Bb5 {[%emt 0:00:06]} g6 {[%emt 0:00:09]} 4. Bxc6 {[%emt 0:00:14]} bxc6 {[%emt 0:00:05]} 5. d4 {[%emt 0:00:21]} cxd4 {[%emt 0:00:08]} 6. Qxd4 {[%emt 0:00:06]} f6 {[%emt 0:00:03]} 7. c4 {[%emt 0:00:13]} d6 {[%emt 0:04:36]} 8. Nc3 {[%emt 0:00:46]} Nh6 {[%emt 0:05:32]} 9. O-O {[%emt 0:01:22]} Nf7 {[%emt 0:11:04]} 10. h3 {[%emt 0:06:15]} Bg7 {[%emt 0:01:48]} 11. b3 {[%emt 0:06:38]} O-O {[%emt 0:00:44]} 12. Bb2 {[%emt 0:00:13]} f5 {[%emt 0:14:47]} 13. Qd2 {[%emt 0:00:35]} Ne5 {[%emt 0:16:37]} 14. Nxe5 {[%emt 0:03:32]} Bxe5 {[%emt 0:00:05]} 15. exf5 {[%emt 0:00:26]} gxf5 {[%emt 0:10:11]} 16. Rfe1 {[%emt 0:08:45]} Bg7 {[%emt 0:06:52]} 17. Rad1 {[%emt 0:05:31]} Rf7 {[%emt 0:05:45]} 18. c5 {[%emt 0:04:10]} d5 {[%emt 0:01:54]} 19. Ne2 {[%emt 0:00:52]} e5 {[%emt 0:00:29]} 20. f4 {[%emt 0:00:25]} e4 {[%emt 0:01:26]} 21. Bxg7 {[%emt 0:00:33]} Rxg7 {[%emt 0:01:20]} 22. Nd4 {[%emt 0:03:05]} Bd7 {[%emt 0:02:52]} 23. b4 {[%emt 0:09:41]} a6 {[%emt 0:00:11]} 24. a4 {[%emt 0:00:20]} Kh8 {[%emt 0:03:34]} 25. Re3 {[%emt 0:05:06]} Qh4 {[%emt 0:01:56]} 26. Qf2 {[%emt 0:01:06]} Qh5 {[%emt 0:00:39]} 27. Rd2 {[%emt 0:01:32]} Rag8 {[%emt 0:01:05]} 28. Qe1 {[%emt 0:00:29]} Qh6 {[%emt 0:02:34]} 29. Rf2 {[%emt 0:00:33]} Rg6 {[%emt 0:02:03]} 30. Qd2 {[%emt 0:01:34]} Qg7 {[%emt 0:03:27]} 31. Qb2 {[%emt 0:00:31]} h6 {[%emt 0:00:55]} 32. Kf1 {[%emt 0:05:23]} Kh7 {[%emt 0:00:09]} 33. Qd2 {[%emt 0:05:04]} Qf6 {[%emt 0:01:43]} 34. Nb3 {[%emt 0:00:30]} Qg7 {[%emt 0:00:42]} 35. Rfe2 {[%emt 0:01:32]} h5 {[%emt 0:01:13]} 36. Nd4 {[%emt 0:00:42]} Qh6 {[%emt 0:00:27]} 37. Rb3 {[%emt 0:02:12]} Rg3 {[%emt 0:00:30]} 38. Rxg3 {[%emt 0:00:59]} Rxg3 {[%emt 0:00:02]} 39. Qc1 {[%emt 0:05:08]} 1/2-1/2

[Event "VII Totalizator Sportowy 2022"]
[Site "Bydgoszcz"]
[Date "2022.06.27"]
[Round "3.25"]
[White "Kolodziejski, Piotr"]
[Black "Skurniak, Szymon"]
[Result "1/2-1/2"]
[ECO "B67"]
[WhiteElo "2107"]
[BlackElo "1960"]
[Annotator "NA RC"]
[PlyCount "94"]
[EventDate "2022.06.25"]
[EventType "swiss"]
[EventCountry "POL"]
[SourceTitle "playchess.com"]
[Source "ChessBase"]
[SourceQuality "1"]
[TimeControl "40/5400+30:1800+30"]

1. e4 {[%emt 0:00:02]} c5 {[%emt 0:00:30]} 2. Nf3 {[%emt 0:00:09]} Nc6 {[%emt 0:00:04]} 3. d4 {[%emt 0:00:07]} cxd4 {[%emt 0:00:04]} 4. Nxd4 {[%emt 0:00:05]} Nf6 {[%emt 0:00:04]} 5. Nc3 {[%emt 0:00:07]} d6 {[%emt 0:00:04]} 6. Bg5 {[%emt 0:00:08]} e6 {[%emt 0:00:59]} 7. Qd2 {[%emt 0:00:25]} a6 {[%emt 0:00:06]} 8. O-O-O {[%emt 0:00:50]} Bd7 {[%emt 0:02:25]} 9. f3 {[%emt 0:00:32]} Be7 {[%emt 0:01:07]} 10. h4 {[%emt 0:00:24]} h6 {[%emt 0:00:08]} 11. Be3 {[%emt 0:00:05]} h5 {[%emt 0:00:10]} 12. Bg5 {[%emt 0:00:26]} Nxd4 {[%emt 0:11:06]} 13. Qxd4 {[%emt 0:00:08]} Qc7 {[%emt 0:01:09]} 14. Kb1 {[%emt 0:04:07]} b5 {[%emt 0:00:31]} 15. Qd2 {[%emt 0:03:14]} b4 {[%emt 0:12:29]} 16. Ne2 {[%emt 0:00:13]} a5 {[%emt 0:00:56]} 17. Rc1 {[%emt 0:10:03]} O-O {[%emt 0:03:53]} 18. c4 {[%emt 0:08:10]} bxc3 {[%emt 0:04:59]} 19. Nxc3 {[%emt 0:00:10]} Qb7 {[%emt 0:05:50]} 20. Bd3 {[%emt 0:05:04]} Bc6 {[%emt 0:16:03]} 21. Rc2 {[%emt 0:05:32]} Rfc8 {[%emt 0:04:21]} 22. Rhc1 {[%emt 0:00:56]} Rab8 {[%emt 0:07:14]} 23. Qe2 {[%emt 0:10:06]} Qd7 {[%emt 0:03:33]} 24. Nb5 {[%emt 0:16:21]} Bxb5 {[%emt 0:02:48]} 25. Rxc8+ {[%emt 0:00:49]} Rxc8 {[%emt 0:00:14]} 26. Rxc8+ {[%emt 0:00:15]} Qxc8 {[%emt 0:00:01]} 27. Bxb5 {[%emt 0:00:10]} Kf8 {[%emt 0:02:42]} 28. Bd2 {[%emt 0:05:16]} Qc7 {[%emt 0:02:01]} 29. Qe1 {[%emt 0:03:56]} Bd8 {[%emt 0:00:42]} 30. a4 {[%emt 0:01:46]} e5 {[%emt 0:09:02]} 31. b4 {[%emt 0:01:59]} axb4 {[%emt 0:00:30]} 32. Bxb4 {[%emt 0:00:06]} Nd7 {[%emt 0:00:05]} 33. g3 {[%emt 0:04:33]} Nc5 {[%emt 0:00:29]} 34. Qc3 {[%emt 0:02:00]} Qb6 {[%emt 0:02:04]} 35. Ka2 {[%emt 0:05:01]} g6 {[%emt 0:02:37]} 36. Qd2 {[%emt 0:01:54]} Kg7 {[%emt 0:01:52]} 37. Ka3 {[%emt 0:01:43]} Bc7 {[%emt 0:01:40]} 38. Bc3 {[%emt 0:08:29]} Ne6 {[%emt 0:01:18]} 39. f4 {[%emt 0:01:34]} Qc5+ {[%emt 0:00:22]} 40. Ka2 {[%emt 0:00:00]} Nd4 {[%emt 0:00:00]} 41. Qd3 {[%emt 0:11:20]} Ne2 {[%emt 0:16:42]} 42. Bb2 {[%emt 0:06:39]} Nc1+ {[%emt 0:01:14]} 43. Bxc1 {[%emt 0:00:04]} Qxc1 {[%emt 0:00:16]} 44. fxe5 {[%emt 0:07:30]} dxe5 {[%emt 0:00:34]} 45. Bc4 {[%emt 0:02:03]} Bb6 {[%emt 0:04:35]} 46. Qd5 {[%emt 0:03:08]} Qc2+ {[%emt 0:00:26]} 47. Ka3 {[%emt 0:00:06]} Bc5+ {[%emt 0:00:27]} 1/2-1/2

[Event "VII Totalizator Sportowy 2022"]
[Site "Bydgoszcz"]
[Date "2022.06.28"]
[Round "4.1"]
[White "Heberla, Bartlomiej"]
[Black "Jarmula, Lukasz"]
[Result "1-0"]
[ECO "C43"]
[WhiteElo "2576"]
[BlackElo "2459"]
[Annotator "RC"]
[PlyCount "71"]
[EventDate "2022.06.25"]
[EventType "swiss"]
[EventCountry "POL"]
[SourceTitle "playchess.com"]
[Source "ChessBase"]
[SourceQuality "1"]
[TimeControl "40/5400+30:1800+30"]

1. e4 {[%emt 0:00:51]} e5 {[%emt 0:00:04]} 2. Nf3 {[%emt 0:00:12]} Nf6 3. d4 {[%emt 0:00:28]} Nxe4 {[%emt 0:00:23]} 4. dxe5 {[%emt 0:00:06]} d5 {[%emt 0:00:21]} 5. Nbd2 {[%emt 0:00:03]} Qd7 {[%emt 0:00:25]} 6. Nxe4 {[%emt 0:00:00]} dxe4 {[%emt 0:00:06]} 7. Nd4 {[%emt 0:00:00]} Bc5 8. Be3 {[%emt 0:00:00]} Bxd4 {[%emt 0:12:16]} 9. Qxd4 {[%emt 0:00:13]} Qxd4 10. Bxd4 {[%emt 0:00:03]} Nc6 {[%emt 0:05:58]} 11. Bc3 {[%emt 0:00:03]} O-O {[%emt 0:00:45]} 12. Bb5 {[%emt 0:12:06]} Bd7 {[%emt 0:07:16]} 13. O-O-O {[%emt 0:01:07]} Rad8 {[%emt 0:03:27]} 14. Rd5 {[%emt 0:21:32]} Be6 {[%emt 0:16:55]} 15. Rc5 {[%emt 0:06:11]} Rd5 {[%emt 0:02:45]} 16. Rxd5 {[%emt 0:00:08]} Bxd5 {[%emt 0:00:04]} 17. Rd1 {[%emt 0:00:06]} Rd8 {[%emt 0:03:53]} 18. Bxc6 {[%emt 0:02:09]} bxc6 {[%emt 0:00:23]} 19. Rd4 {[%emt 0:03:22]} Kf8 {[%emt 0:11:08]} 20. Ba5 {[%emt 0:09:19]} Rd7 {[%emt 0:03:34]} 21. Bd2 {[%emt 0:16:36]} Ke7 {[%emt 0:08:31]} 22. Ra4 {[%emt 0:00:12]} e3 {[%emt 0:02:15]} 23. Bxe3 {[%emt 0:03:36]} Bxg2 {[%emt 0:01:24]} 24. Rxa7 {[%emt 0:02:33]} Bf3 {[%emt 0:01:09]} 25. b4 {[%emt 0:05:34]} Ke6 {[%emt 0:01:15]} 26. a4 {[%emt 0:01:02]} Kd5 {[%emt 0:04:11]} 27. c3 {[%emt 0:12:58]} Kxe5 {[%emt 0:07:22]} 28. Bd4+ {[%emt 0:00:33]} Kd5 {[%emt 0:00:41]} 29. Ra5+ {[%emt 0:02:14]} Kc4 {[%emt 0:01:07]} 30. Re5 {[%emt 0:00:02]} f6 {[%emt 0:01:49]} 31. Re3 {[%emt 0:00:06]} Bh5 {[%emt 0:01:39]} 32. Re6 {[%emt 0:01:08]} Kd5 {[%emt 0:00:55]} 33. Re1 {[%emt 0:00:02]} Rd6 {[%emt 0:02:51]} 34. a5 {[%emt 0:00:28]} Re6 {[%emt 0:00:33]} 35. c4+ {[%emt 0:00:06]} Kd6 {[%emt 0:01:02]} 36. Bc5+ {[%emt 0:00:02]} 1-0